bitfinex/quotes_ETHUSD_20240822
["timestamp","ask_amount","ask_price","bid_price","bid_amount"]
[1724298948651,0.1259771,2620.8,2620.4,2.28968]
[1724298949149,0.1259771,2620.8,2620.2,2.3161]
[1724298949361,0.1259771,2620.8,2620.3,2.28981]
[1724298949557,0.1259771,2620.8,2620.5,2.28958]
[1724298950048,0.1259771,2620.8,2620.3,2.28976]
[1724298950255,0.1259771,2620.8,2620.2,2.3161]
[1724298950547,0.1259771,2620.8,2620.5,2.28963]
[1724298950698,0.1259771,2620.8,2620.6,2.28954]
[1724298951355,0.1259771,2620.8,2620.6,2.3081]
[1724298951553,0.1259771,2620.8,2620.5,2.28963]
[1724298952102,0.1259771,2620.8,2620.3,4.8295]
[1724298952317,0.1259771,2620.8,2620.5,2.28961]
[1724298952713,0.1259771,2620.8,2620.4,0.48295]
[1724298952918,0.1259771,2620.8,2620.3,4.59789]
[1724298953954,0.1259771,2620.8,2620.3,2.28979]
[1724298954356,0.1259771,2620.8,2620.1,4.67074]
[1724298954519,4.9078571,2620.8,2620.2,2.28989]
[1724298954724,4.9078571,2620.8,2620.1,4.67074]
[1724298955036,3.10926281,2620.8,2620.1,4.67074]
[1724298955366,3.10926281,2620.8,2620.5,2.28957]
[1724298955367,0.1259771,2620.8,2620.5,2.28957]
[1724298955516,0.04849459,2620.7,2620.6,4.64355]
[1724298955726,0.04849459,2620.7,2620.6,5.336862]
[1724298955917,0.1259771,2620.8,2620.6,3.047312]
[1724298956171,0.04833659,2620.7,2620.6,2.354]
[1724298956328,0.04833659,2620.7,2620.5,2.28957]
[1724298956661,0.04830468,2620.6,2620.5,2.28957]
[1724298957005,0.1259771,2620.8,2620.5,2.28957]
[1724298957406,0.04835525,2620.7,2620.5,2.28957]
[1724298957647,0.04835525,2620.7,2620.5,2.982905]
[1724298957849,0.1259771,2620.8,2620.5,2.982905]
[1724298958036,0.04830468,2620.6,2620.5,2.982905]
[1724298958234,0.1259771,2620.8,2620.5,2.982905]
[1724298958663,0.04835525,2620.7,2620.5,2.982905]
[1724298958957,0.04835525,2620.7,2620.3,4.64378]
[1724298959164,0.1259771,2620.8,2620.5,2.28956]
[1724298959314,0.04830468,2620.6,2620.5,2.28956]
[1724298959659,0.04831849,2620.6,2620.5,2.28956]
[1724298959839,0.1259771,2620.8,2620.5,2.28956]
[1724298960038,0.04831849,2620.6,2620.5,2.28956]
[1724298960205,0.1259771,2620.8,2620.5,2.28956]
[1724298960411,0.04831849,2620.6,2620.5,2.982892]
[1724298960710,0.1259771,2620.8,2620.5,2.28956]
[1724298960911,0.04835913,2620.6,2620.3,4.64376]
[1724298961155,0.1259771,2620.8,2620.3,6.9335]
[1724298961315,0.04830855,2620.5,2620.3,4.64374]
[1724298961656,0.1259771,2620.8,2620.6,2.28954]
[1724298961960,0.1259771,2620.8,2620.5,2.28962]
[1724298962756,0.1259771,2620.8,2620.3,4.64374]
[1724298963057,0.1259771,2620.8,2620.3,6.93349]
[1724298963225,0.1259771,2620.8,2620.4,2.28971]
[1724298963841,0.1259771,2620.8,2620.1,2.28994]
[1724298963842,2.5185771,2620.8,2620.1,4.63214]
[1724298964159,0.48079271,2620.7,2620.2,2.28988]
[1724298964569,0.48079271,2620.7,2620.3,2.28981]
[1724298964935,4.8079571,2620.8,2620.3,2.28981]
[1724298965160,2.5185771,2620.8,2620.3,2.28981]
[1724298965468,4.88469333,2620.8,2620.1,4.57985]
[1724298965649,4.88469333,2620.8,2620.1,2.28992]
[1724298965650,2.5185771,2620.8,2620.1,2.28992]
[1724298965961,0.1259771,2620.8,2620.3,4.64975]
[1724298966586,0.1259771,2620.8,2620.3,2.28975]
[1724298967116,2.3203,2620.7,2620.2,2.2899]
[1724298967240,0.47356771,2620.6,2620.1,2.28997]
[1724298968142,2.3203,2620.7,2620.2,2.28987]
[1724298968335,2.3203,2620.7,2619.9,2.29013]
[1724298968542,2.3203,2620.7,2620.1,2.28996]
[1724298968995,4.60982,2620.7,2620.1,2.28996]
[1724298969688,2.3203,2620.7,2620.1,4.70316]
[1724298969990,2.3203,2620.7,2620.3,2.28973]
[1724298970493,0.04822372,2620.6,2620.3,4.57946]
[1724298970654,0.04822372,2620.6,2620.3,2.28973]
[1724298971505,0.04822372,2620.6,2620.3,4.57948]
[1724298971662,0.04822372,2620.6,2620.3,2.28973]
[1724298972294,0.2976738,2620.6,2619.9,2.29012]
[1724298972501,2.3725,2620.5,2619.8,2.29025]
[1724298972651,2.36645623,2620.4,2619.8,2.29025]
[1724298972852,2.41459233,2620.4,2619.8,2.29025]
[1724298973667,2.3725,2620.3,2619.8,2.29025]
[1724298973854,2.3725,2620.3,2619.7,2.29026]
[1724298973855,2.36659623,2620.2,2619.7,2.29026]
[1724298974051,0.47390962,2620.1,2619.7,2.29026]
[1724298974379,0.04793824,2620.0,2619.7,2.29031]
[1724298974708,0.04793824,2620.0,2619.3,2.4263]
[1724298975008,0.04793824,2620.0,2619.7,2.29029]
[1724298975228,0.04793824,2620.0,2619.0,0.3823]
[1724298975229,4.66303,2619.5,2618.8,4.71734]
[1724298975352,0.07668623,2619.4,2618.6,2.29126]
[1724298975551,2.3725,2619.5,2618.8,2.29112]
[1724298975811,0.04752625,2619.4,2619.1,2.29083]
[1724298976115,0.04752625,2619.4,2619.0,2.29086]
[1724298976885,0.04752625,2619.4,2619.0,2.2909]
[1724298977258,0.04752625,2619.4,2619.2,2.2907]
[1724298977492,2.2775,2619.8,2619.2,2.2907]
[1724298977696,0.04715302,2619.3,2619.2,2.2907]
[1724298977871,2.2775,2619.8,2619.2,2.2907]
[1724298978070,0.04715302,2619.3,2619.2,2.2907]
[1724298978276,2.29036,2619.7,2619.0,2.2909]
[1724298978584,3.141726,2619.7,2619.0,2.2909]
[1724298978789,0.04729161,2619.6,2619.0,2.2909]
[1724298979184,0.04729161,2619.6,2619.2,2.29076]
[1724298979499,2.2775,2619.8,2619.0,2.29093]
[1724298979686,0.047241,2619.5,2618.9,2.4263]
[1724298979893,2.29044,2619.6,2618.9,2.4263]
[1724298980203,0.047241,2619.5,2618.9,2.4263]
[1724298980408,0.047241,2619.5,2619.1,2.29081]
[1724298980701,0.047241,2619.5,2618.9,4.71733]
[1724298980702,2.2775,2619.8,2619.0,2.29094]
[1724298981011,3.141705,2619.7,2619.0,2.29094]
[1724298981314,0.04734131,2619.6,2619.0,2.29094]
[1724298982318,2.33777131,2619.6,2619.0,2.29094]
[1724298982616,2.3889,2619.5,2619.0,2.29094]
[1724298983113,0.04720395,2619.4,2619.0,2.29094]
[1724298983290,0.04720395,2619.4,2618.8,2.29106]
[1724298983492,2.29078,2619.2,2618.6,2.29127]
[1724298983704,2.69466423,2619.1,2618.6,2.29127]
[1724298983895,2.74171631,2619.1,2618.6,2.29127]
[1724298984104,2.51263831,2619.1,2618.6,2.29127]
[1724298984662,2.51263831,2619.1,2618.4,4.65524]
[1724298984663,4.80355831,2619.1,2618.4,4.65524]
[1724298984906,2.29103,2619.0,2618.4,2.29144]
[1724298985127,0.70179021,2618.9,2618.4,2.29144]
[1724298985563,0.04679174,2618.8,2618.2,4.5832]
[1724298985835,2.4973,2618.7,2618.1,2.3706]
[1724298985979,2.4973,2618.7,2618.1,4.66227]
[1724298986184,0.04628852,2618.6,2618.1,5.357675]
[1724298986538,0.04628852,2618.6,2618.2,2.29164]
[1724298988029,0.04628852,2618.6,2618.2,4.58322]
[1724298988244,0.04628852,2618.6,2618.2,2.29158]
[1724298989135,0.04628852,2618.6,2618.3,2.29154]
[1724298989460,0.04628852,2618.6,2618.2,2.29158]
[1724298989461,0.04628852,2618.6,2618.4,2.29146]
[1724298989965,2.4058,2618.9,2618.4,2.29146]
[1724298990163,0.0459171,2618.5,2618.4,2.29146]
[1724298990320,2.4058,2618.9,2618.4,2.29146]
[1724298990514,0.04590383,2618.5,2618.2,2.757798]
[1724298990715,5.166517,2618.9,2618.2,2.29158]
[1724298990918,0.04586644,2618.4,2618.3,4.58305]
[1724298991116,2.4058,2619.1,2618.6,2.29123]
[1724298991368,2.4058,2619.1,2618.7,2.29114]
[1724298992974,6.3598,2619.3,2618.8,2.29111]
[1724298993464,8.6505,2619.3,2618.6,2.29123]
[1724298993665,8.6505,2619.3,2618.6,2.999205]
[1724298994469,6.3598,2619.3,2618.7,2.29114]
[1724298995661,6.3598,2619.3,2618.8,2.29105]
[1724298995862,2.4138,2619.3,2618.8,2.8200665]
[1724298996072,2.2906,2619.4,2618.9,2.29102]
[1724298996620,2.3255,2619.8,2619.0,2.2533]
[1724298996853,7.44,2620.2,2619.5,2.29043]
[1724298996854,2.3255,2620.1,2619.5,2.29043]
[1724298997042,3.0695,2620.1,2619.5,2.29043]
[1724298997460,5.35951,2620.1,2619.5,2.29043]
[1724298997633,3.0695,2620.1,2619.5,2.29043]
[1724298998623,5.3595,2620.1,2619.5,2.29043]
[1724298998856,5.3595,2620.1,2619.5,4.58089]
[1724298999179,2.3255,2620.1,2619.7,2.29033]
[1724298999318,2.4539,2620.3,2619.8,2.29021]
[1724298999524,2.4539,2620.3,2619.7,4.58056]
[1724298999525,4.74372,2620.3,2619.7,4.58056]
[1724298999772,2.4539,2620.3,2619.8,2.29022]
[1724299000088,3.232266,2620.3,2619.8,2.29022]
[1724299000421,0.04107648,2620.2,2619.8,2.29022]
[1724299000661,3.232266,2620.3,2619.8,2.29022]
[1724299000848,0.04102589,2620.1,2619.8,2.29022]
[1724299001043,0.04107648,2620.2,2619.8,2.29022]
[1724299001264,2.4539,2620.6,2620.1,2.28998]
[1724299001465,2.4539,2620.6,2620.2,2.28989]
[1724299001665,2.4539,2620.6,2620.2,2.28984]
[1724299001971,4.8693071,2620.8,2620.2,2.28984]
[1724299002139,7.1587471,2620.8,2620.2,2.28984]
[1724299002325,7.1587571,2620.8,2620.2,2.28984]
[1724299002532,7.1587471,2620.8,2620.2,2.28984]
[1724299002838,4.8693071,2620.8,2620.2,2.28984]
[1724299003424,2.28949,2620.7,2620.2,2.28984]
[1724299003625,4.8693071,2620.8,2620.2,2.28984]
[1724299003945,0.1259771,2620.8,2620.5,2.28959]
[1724299004274,0.1259771,2620.8,2620.7,2.28946]
[1724299004827,0.1259771,2620.8,2620.5,4.57916]
[1724299005026,0.1259771,2620.8,2620.5,2.28957]
[1724299005270,0.1259771,2620.8,2620.5,2.747504]
[1724299006898,0.1259771,2620.8,2620.2,2.824887]
[1724299006899,2.5824771,2620.8,2620.2,0.457987]
[1724299007044,0.07668623,2620.7,2620.2,2.747827]
[1724299007387,4.8718571,2620.8,2620.2,2.747827]
[1724299007618,4.8718571,2620.8,2620.2,2.28984]
[1724299007619,5.58796781,2620.8,2620.2,2.28984]
[1724299008885,5.58796781,2620.8,2620.2,4.57968]
[1724299009790,5.58796781,2620.8,2620.0,2.3147]
[1724299010099,5.58796781,2620.8,2619.5,7.8723]
[1724299010100,0.07668623,2620.7,2620.1,2.2899]
[1724299010372,0.63548301,2620.7,2620.1,2.2899]
[1724299010929,2.92494301,2620.7,2620.1,2.2899]
[1724299011157,2.28956,2620.6,2620.0,4.58002]
[1724299011357,2.2581,2620.5,2620.0,2.29001]
[1724299011557,4.62443623,2620.5,2619.8,2.29018]
[1724299011747,4.54775,2620.5,2619.8,2.29018]
[1724299011967,2.2581,2620.5,2619.8,2.29018]
[1724299012148,2.2581,2620.5,2619.8,3.063078]
[1724299012535,2.2581,2620.5,2620.0,2.29001]
[1724299012877,2.2581,2620.5,2620.0,4.58002]
[1724299013078,6.3613871,2620.8,2619.8,0.772898]
[1724299013079,4.6734871,2620.8,2620.2,2.28983]
[1724299013281,2.3840771,2620.8,2620.2,0.228983]
[1724299013478,2.3840771,2620.8,2620.0,2.4388]
[1724299013479,2.3840771,2620.8,2620.3,2.28973]
[1724299013854,2.3840771,2620.8,2620.3,4.57949]
[1724299014056,2.3840771,2620.8,2620.4,2.28968]
[1724299015489,0.03885178,2620.7,2620.4,2.28968]
[1724299015668,0.1259771,2620.8,2620.5,2.3718]
[1724299015889,3.946,2622.1,2620.5,2.3718]
[1724299015890,2.2881,2622.3,2621.5,2.2887]
[1724299016086,2.2881,2622.3,2620.6,0.3823]
[1724299016087,4.3568,2622.6,2621.2,0.3823]
[1724299016294,2.3704,2622.5,2621.9,2.28834]
[1724299016610,2.0,2622.6,2622.1,2.28815]
[1724299016804,2.0,2622.6,2621.8,2.2885]
[1724299016954,5.946,2622.6,2621.8,2.2885]
[1724299017151,3.11959,2622.5,2621.8,2.28845]
[1724299017351,3.11959,2622.5,2621.4,2.2735]
[1724299017603,3.11959,2622.5,2621.9,2.2884]
[1724299017754,3.11959,2622.5,2621.8,2.28844]
[1724299017955,0.906559,2622.4,2621.4,4.56234]
[1724299018156,2.28825,2622.1,2621.2,2.28898]
[1724299018558,2.28834,2622.0,2621.2,2.28898]
[1724299018757,2.746089,2621.9,2621.2,2.28898]
[1724299018968,2.82277523,2621.9,2621.2,2.28898]
[1724299019172,2.82277523,2621.9,2621.3,2.28893]
[1724299019514,2.746089,2621.9,2621.2,2.28898]
[1724299019721,0.2746089,2621.8,2621.2,2.28898]
[1724299020242,0.2746089,2621.8,2621.0,2.28913]
[1724299020388,4.555,2621.7,2621.1,2.2891]
[1724299020583,5.26680389,2621.7,2621.0,2.28913]
[1724299020784,2.97820389,2621.7,2621.2,2.28902]
[1724299021193,2.97820389,2621.7,2621.0,4.57827]
[1724299021383,5.26680389,2621.7,2621.0,2.28913]
[1724299021601,5.26680389,2621.7,2621.1,2.2891]
[1724299021802,5.26680389,2621.7,2621.2,2.28901]
[1724299021803,2.97820389,2621.7,2621.2,2.28901]
[1724299023297,2.28843,2621.9,2621.4,2.28884]
[1724299024046,2.28843,2621.9,2621.2,4.57798]
[1724299024209,4.57691,2621.9,2621.2,2.28897]
[1724299024411,0.457691,2621.8,2621.2,4.57794]
[1724299024610,2.28843,2621.9,2621.2,4.57794]
[1724299024824,2.28843,2621.9,2621.3,2.28891]
[1724299025021,4.54667,2622.1,2620.8,5.4395]
[1724299025022,2.28833,2622.0,2620.8,5.4395]
[1724299025227,2.28851,2621.8,2621.2,2.28897]
[1724299025544,2.28833,2622.0,2621.3,2.28892]
[1724299025545,0.454673,2621.9,2621.3,2.28892]
[1724299025844,2.2885,2621.8,2621.2,2.28897]
[1724299026201,2.28859,2621.7,2621.2,2.28897]
[1724299026538,2.28859,2621.7,2621.0,2.28913]
[1724299026737,2.28867,2621.6,2621.0,2.28913]
[1724299029096,2.28867,2621.6,2621.0,4.57827]
[1724299029297,2.28867,2621.6,2621.1,2.28911]
[1724299029705,2.28867,2621.6,2621.0,2.28913]
[1724299030636,0.0366051,2621.5,2621.0,2.28913]
[1724299032337,0.0366051,2621.5,2620.8,4.72883]
[1724299032545,2.3443,2621.1,2620.4,2.28969]
[1724299032841,2.28921,2621.0,2620.4,2.28967]
[1724299033151,2.32552178,2621.0,2620.4,2.28967]
[1724299034093,3.02140996,2621.0,2620.4,2.28967]
[1724299034940,2.28929,2620.9,2620.4,2.28967]
[1724299035107,3.02140996,2621.0,2620.2,2.28987]
[1724299035108,2.28939,2620.8,2620.2,2.28987]
[1724299035313,2.28957,2620.6,2620.0,2.29002]
[1724299035515,4.63387,2620.6,2620.0,2.29002]
[1724299035702,2.2897,2620.5,2619.8,5.444298]
[1724299035904,2.32547478,2620.5,2619.8,7.734488]
[1724299036350,0.03577478,2620.5,2619.9,2.29014]
[1724299036503,0.03577478,2620.5,2620.0,2.29004]
[1724299036849,0.03577478,2620.5,2620.0,2.29002]
[1724299037346,0.57309748,2620.5,2619.6,2.29038]
[1724299037551,0.57309748,2620.5,2619.6,2.29036]
[1724299037758,2.28979,2620.4,2619.8,2.29023]
[1724299037961,2.3255142,2620.4,2619.8,2.29023]
[1724299039741,2.3255142,2620.4,2619.8,4.58041]
[1724299040065,0.0357242,2620.4,2619.9,0.458041]
[1724299040362,5.33746222,2620.6,2620.0,2.29001]
[1724299040566,0.03511869,2620.3,2620.0,2.29001]
[1724299040779,2.3443,2620.6,2620.1,2.28997]
[1724299041064,0.0350681,2620.2,2620.0,4.58002]
[1724299041279,4.63385,2620.6,2620.0,2.748012]
[1724299041437,0.03501751,2620.1,2620.0,4.58003]
[1724299041634,4.63385,2620.6,2620.0,4.58002]
[1724299041855,2.28942,2620.8,2620.2,2.28989]
[1724299042235,2.28942,2620.8,2620.2,2.28985]
[1724299042439,4.57887,2620.8,2620.2,2.28985]
[1724299042636,2.28951,2620.7,2620.0,4.7117]
[1724299043353,2.2896,2620.6,2620.0,4.71177]
[1724299043537,2.2896,2620.6,2620.0,2.29006]
[1724299045534,0.03528596,2620.5,2620.0,2.29006]
[1724299046129,0.03528596,2620.5,2619.9,2.29016]
[1724299046382,2.28947,2620.7,2620.1,2.28991]
[1724299046942,0.03530942,2620.6,2620.1,2.28991]
[1724299047167,2.32487942,2620.6,2620.1,2.28991]
[1724299047535,2.28964,2620.5,2619.9,2.2901]
[1724299047736,2.28974,2620.4,2619.9,2.2901]
[1724299048035,2.28981,2620.3,2619.9,0.47118]
[1724299048236,4.57967,2620.3,2619.7,4.71195]
[1724299048482,2.28995,2620.2,2619.7,2.29025]
[1724299048745,0.03482192,2620.1,2619.5,4.5809]
[1724299049017,2.28995,2620.2,2619.6,0.771216]
[1724299049162,2.28995,2620.2,2619.6,3.061626]
[1724299049363,2.32477295,2620.1,2619.6,0.771216]
[1724299049745,0.03476295,2620.1,2619.6,3.061586]
[1724299050252,0.03476295,2620.1,2619.7,2.29032]
[1724299050438,2.28981,2620.3,2619.7,2.29032]
[1724299050787,0.03475544,2620.2,2619.7,2.29032]
[1724299050985,0.03475544,2620.2,2619.7,4.5806]
[1724299051153,0.03475544,2620.2,2619.7,2.8254616]
[1724299051350,2.4538,2620.4,2619.9,2.29013]
[1724299051557,0.034601,2620.1,2619.9,2.29013]
[1724299051795,2.4538,2620.4,2619.9,2.29013]
[1724299051934,0.03456367,2620.0,2619.9,2.29013]
[1724299052140,2.4538,2620.4,2619.9,2.29013]
[1724299052334,0.03464041,2620.0,2619.9,2.29013]
[1724299052583,2.4538,2620.4,2619.9,2.29013]
[1724299052789,0.03460878,2620.0,2619.9,2.2901]
[1724299053010,2.28969,2620.5,2619.9,2.748141]
[1724299053158,0.03459552,2620.0,2619.9,2.748141]
[1724299053365,2.28955,2620.6,2620.0,2.28999]
[1724299053864,5.217619,2620.7,2619.9,2.748141]
[1724299054068,2.28964,2620.5,2619.9,2.748141]
[1724299054284,2.28977,2620.4,2619.9,2.2901]
[1724299054801,4.57934,2620.5,2619.8,2.4217]
[1724299055093,2.28982,2620.3,2619.8,2.4217]
[1724299055293,2.28982,2620.3,2619.7,2.29028]
[1724299056697,2.28982,2620.3,2619.7,2.29027]
[1724299057204,2.4134,2619.8,2618.8,2.4947]
[1724299057368,5.8005099,2620.2,2619.4,2.29053]
[1724299057369,2.29012,2620.0,2619.4,2.29053]
[1724299057572,2.4134,2620.1,2619.5,2.2905]
[1724299057779,2.28982,2620.3,2619.7,2.29027]
[1724299058111,4.70317,2620.4,2619.7,4.58053]
[1724299058112,0.699299,2620.2,2619.7,4.58053]
[1724299058275,0.699299,2620.2,2619.7,4.58054]
[1724299058665,0.699299,2620.2,2619.7,2.29026]
[1724299059116,2.989259,2620.2,2619.6,2.29041]
[1724299059417,0.30659452,2620.1,2619.7,2.29033]
[1724299059565,0.699299,2620.2,2619.7,2.29033]
[1724299060605,0.03465037,2620.1,2619.7,2.29033]
[1724299060768,0.03465037,2620.1,2619.5,4.58092]
[1724299061106,0.03465037,2620.1,2619.6,2.29041]
[1724299061412,0.03465037,2620.1,2619.5,2.29044]
[1724299061413,2.62707531,2620.1,2619.5,2.29044]
[1724299062208,2.62707531,2620.1,2619.4,2.2906]
[1724299062209,2.29008,2620.0,2619.4,2.2906]
[1724299062412,4.93998153,2619.9,2619.3,2.29068]
[1724299062613,0.29713458,2619.9,2619.4,2.29059]
[1724299062962,2.58732458,2619.9,2619.3,2.29068]
[1724299063166,0.48774046,2619.8,2619.3,4.58132]
[1724299063398,0.48774046,2619.8,2619.3,4.58126]
[1724299063578,0.03432184,2619.7,2619.3,2.29062]
[1724299064053,0.48774046,2619.8,2619.3,2.29062]
[1724299064273,2.55290153,2619.9,2619.3,2.29062]
[1724299064274,0.03432184,2619.7,2619.3,2.29062]
[1724299064474,2.55290153,2619.9,2619.3,2.29062]
[1724299064697,4.58368957,2619.8,2619.2,2.2907]
[1724299065015,4.58368957,2619.8,2619.3,2.29067]
[1724299066332,0.48464011,2619.7,2619.3,2.29067]
[1724299066927,0.48464011,2619.7,2619.1,7.71261]
[1724299066928,0.03673339,2619.6,2619.1,2.29081]
[1724299067129,4.73149,2619.3,2618.7,2.29114]
[1724299067268,0.473149,2619.2,2618.7,2.29114]
[1724299067473,0.03646222,2619.1,2618.8,2.2911]
[1724299067714,2.4408,2619.3,2618.9,2.29103]
[1724299068019,0.03651646,2619.2,2618.9,2.29103]
[1724299068375,2.4408,2619.3,2618.9,2.29103]
[1724299068718,2.88714011,2619.7,2619.2,2.29071]
[1724299068918,0.03624046,2619.6,2619.2,2.29071]
[1724299069265,2.3215,2619.5,2619.0,2.29095]
[1724299069523,2.2909,2619.1,2618.3,2.29149]
[1724299069749,6.2675,2619.3,2618.6,2.29124]
[1724299069871,2.29083,2619.2,2618.4,4.58298]
[1724299070072,2.29088,2619.1,2618.5,2.29132]
[1724299070467,0.91443111,2619.2,2618.6,2.29127]
[1724299070717,6.2675,2619.3,2618.8,2.29106]
[1724299070918,6.30607582,2619.3,2618.8,2.29106]
[1724299071219,2.36007582,2619.3,2618.9,2.29101]
[1724299071720,2.3215,2619.3,2618.9,2.29101]
[1724299072473,2.29082,2619.2,2618.5,2.2913]
[1724299072673,2.29093,2619.1,2618.5,4.58262]
[1724299072974,6.49965,2619.3,2618.8,2.2911]
[1724299074529,6.49965,2619.3,2618.9,2.29102]
[1724299074825,6.2675,2619.3,2618.7,4.58231]
[1724299074977,6.2675,2619.3,2618.7,2.29115]
[1724299075502,6.2675,2619.3,2618.8,2.29112]
[1724299077329,8.55819,2619.3,2618.8,2.29112]
[1724299077526,9.643075,2619.3,2618.8,2.29112]
[1724299078685,7.352385,2619.3,2618.8,2.29112]
[1724299078885,7.352385,2619.3,2618.5,2.2916]
[1724299078886,6.2675,2619.3,2618.5,2.2916]
[1724299079138,3.55583006,2619.6,2618.9,2.29096]
[1724299079139,6.2404,2619.6,2618.9,2.29096]
[1724299079308,8.53087,2619.6,2619.0,2.29094]
[1724299079501,0.62404,2619.5,2619.0,2.29094]
[1724299080041,0.62404,2619.5,2618.8,2.29112]
[1724299080239,3.206131,2619.4,2618.8,2.29112]
[1724299080741,2.2944,2619.2,2618.6,2.29122]
[1724299081242,4.58523,2619.2,2618.6,2.29122]
[1724299082697,4.58523,2619.2,2618.7,2.29121]
[1724299083666,2.2944,2619.2,2618.7,2.29121]
[1724299084169,0.915491,2619.4,2618.9,2.29098]
[1724299084379,2.4939,2619.5,2618.9,2.29098]
[1724299084672,2.4939,2619.5,2619.0,2.29089]
[1724299085462,2.4939,2619.5,2618.9,2.29098]
[1724299085463,4.78442,2619.5,2618.9,2.29098]
[1724299085658,4.78442,2619.5,2618.9,4.58196]
[1724299085815,3.595988,2619.5,2619.1,2.29084]
[1724299087168,3.595988,2619.5,2619.2,2.29077]
[1724299087350,3.946,2619.6,2619.2,2.29077]
[1724299088775,3.946,2619.6,2619.4,2.29059]
[1724299089089,2.29038,2619.7,2619.2,2.2907]
[1724299089425,11.9985,2619.8,2619.2,4.58142]
[1724299089651,2.29017,2619.9,2619.4,2.29059]
[1724299089835,2.4957,2620.0,2619.5,2.29049]
[1724299090837,8.59776,2620.3,2619.4,2.5715456]
[1724299091139,2.28996,2620.2,2619.6,2.29042]
[1724299091676,2.29008,2620.0,2619.4,4.78575]
[1724299091978,0.458009,2619.9,2619.4,2.4952]
[1724299092680,2.748179,2619.9,2619.4,2.4952]
[1724299095348,2.29017,2619.9,2619.4,2.4952]
[1724299095883,2.29017,2619.9,2619.4,4.7858]
[1724299097073,4.75987,2619.9,2619.1,4.63162]
[1724299097392,2.29034,2619.7,2619.1,4.63162]
[1724299097681,3.00302962,2619.7,2619.1,4.63162]
[1724299098278,4.73537585,2619.7,2618.9,3.0]
[1724299098462,2.29068,2619.4,2618.8,2.3408]
[1724299098994,2.29058,2619.5,2618.9,2.29101]
[1724299099788,2.36726623,2619.5,2618.9,2.29101]
[1724299099942,4.65785623,2619.5,2618.9,2.29101]
[1724299100146,2.36726623,2619.5,2618.9,2.29101]
[1724299100386,0.28331352,2619.4,2618.9,2.29101]
[1724299101818,0.46586896,2619.6,2619.0,2.29094]
[1724299102120,9.9097,2619.9,2618.8,2.3408]
[1724299102121,7.44,2619.9,2619.4,2.29059]
[1724299102672,9.73018,2619.9,2619.2,2.2907]
[1724299102971,9.73018,2619.9,2619.2,4.5814]
[1724299103225,9.73018,2619.9,2619.3,2.29065]
[1724299103426,3.657878,2619.8,2619.2,2.2907]
[1724299103672,1.367618,2619.8,2619.2,2.2907]
[1724299103979,1.367618,2619.8,2619.3,2.29066]
[1724299104380,1.367618,2619.8,2619.2,2.2907]
[1724299104708,3.657878,2619.8,2619.2,2.2907]
[1724299105449,3.657878,2619.8,2619.2,4.58141]
[1724299106045,9.73018,2619.9,2619.4,2.29057]
[1724299106912,2.29018,2619.9,2619.4,2.29057]
[1724299107115,2.29025,2619.8,2619.2,2.2907]
[1724299107731,2.29025,2619.8,2619.2,4.58141]
[1724299108847,2.29025,2619.8,2619.2,2.2907]
[1724299109052,3.142893,2619.8,2619.2,2.2907]
[1724299109358,2.29035,2619.7,2619.2,2.2907]
[1724299111228,2.29047,2619.6,2619.1,2.3234]
[1724299112450,2.29051,2619.5,2619.0,2.29091]
[1724299112748,2.985256,2619.5,2619.0,5.29091]
[1724299113043,2.985256,2619.5,2619.0,2.29091]
[1724299113600,4.74701,2619.4,2618.8,2.29107]
[1724299113817,2.4564,2619.4,2618.8,2.29107]
[1724299114046,0.5441656,2619.3,2618.9,2.29102]
[1724299114396,0.07668623,2619.2,2618.5,2.2781]
[1724299114595,4.57026,2619.0,2618.5,2.29137]
[1724299115031,2.2793,2619.0,2618.5,4.58274]
[1724299115745,2.2793,2619.0,2618.5,4.58271]
[1724299115954,2.2793,2619.0,2618.5,2.29134]
[1724299116153,2.29048,2619.6,2618.6,2.4922]
[1724299116300,2.29034,2619.7,2619.1,2.2908]
[1724299116500,2.29039,2619.7,2619.0,4.58184]
[1724299116700,3.489769,2619.7,2619.0,4.58179]
[1724299117217,3.489769,2619.7,2619.1,2.29084]
[1724299118750,2.29043,2619.6,2619.1,2.29084]
[1724299119253,2.29043,2619.6,2618.8,2.29107]
[1724299119553,2.29073,2619.3,2618.8,2.29107]
[1724299120733,2.29073,2619.3,2618.8,4.58214]
[1724299120936,6.8851,2619.5,2618.8,4.58214]
[1724299121135,2.29061,2619.4,2618.8,4.58212]
[1724299121340,0.688513,2619.3,2618.8,2.29105]
[1724299121540,0.688513,2619.3,2618.8,4.58211]
[1724299121854,2.979213,2619.3,2618.8,2.29105]
[1724299122450,0.688513,2619.3,2618.8,2.29105]
[1724299122655,0.688513,2619.3,2618.6,2.4922]
[1724299122656,2.304,2619.5,2618.9,2.29102]
[1724299122803,2.304,2619.5,2619.1,2.29085]
[1724299123508,0.8639379,2619.6,2619.1,2.2908]
[1724299124246,0.8639379,2619.6,2619.2,2.29072]
[1724299124759,6.3724,2619.7,2619.2,2.29071]
[1724299124951,2.4264,2619.9,2619.4,2.29054]
[1724299125105,3.946,2620.0,2619.6,2.29035]
[1724299125305,4.71635,2620.2,2619.6,2.29035]
[1724299125306,2.4264,2620.2,2619.7,2.29033]
[1724299125507,2.4264,2620.2,2619.8,2.29019]
[1724299125749,3.946,2620.3,2619.9,2.29015]
[1724299125957,3.946,2620.3,2619.8,4.58038]
[1724299126122,3.946,2620.3,2619.8,2.29019]
[1724299126319,4.812208,2620.3,2619.8,2.29019]
[1724299127221,0.866208,2620.3,2619.8,2.29017]
[1724299128459,2.4264,2620.5,2620.0,2.29005]
[1724299128631,2.4264,2620.5,2620.0,4.5801]
[1724299128827,3.946,2620.6,2620.0,2.28999]
[1724299130273,3.946,2620.6,2620.0,4.58]